fUST/lending_fUST_20251023
["ID","MTS","AMOUNT","RATE_DAILY","PERIOD"]
[392116439,1761169852900,-500.0,0.0004,7]
[392116440,1761169852910,-500.0,0.0004,7]
[392116441,1761169852919,-500.0,0.0004,7]
[392116442,1761169852929,-500.0,0.0004,7]
[392116443,1761169852939,-500.0,0.0004,7]
[392116444,1761169852948,-500.0,0.0004,7]
[392116445,1761169853013,-11953.07,0.0004,3]
[392116446,1761169853022,-500.0,0.0004,7]
[392116447,1761169853032,-500.0,0.0004,7]
[392116448,1761169853041,-500.0,0.0004,7]
[392116449,1761169853050,-551.47,0.0004,7]
[392116450,1761169853060,-500.0,0.0004,7]
[392116451,1761169853070,-1336.58,0.0004,7]
[392116452,1761169853080,-500.0,0.0004,7]
[392116453,1761169853090,-1853.15,0.0004,7]
[392116454,1761169853099,-1306.03,0.0004,7]
[392116455,1761169853108,-500.0,0.0004,7]
[392116456,1761169853118,-500.0,0.0004,7]
[392116457,1761169853127,-30464.81,0.0004,7]
[392116458,1761169853136,-403.14601822,0.0004,120]
[392116459,1761169853146,-500.0,0.0004,7]
[392116460,1761169853156,-500.0,0.0004,7]
[392116461,1761169853165,-692.08,0.0004,7]
[392116462,1761169853175,-500.0,0.0004,7]
[392116463,1761169853184,-570.6,0.0004,7]
[392116464,1761169853194,-500.0,0.0004,7]
[392116465,1761169853204,-2782.04,0.0004,7]
[392116466,1761169853213,-500.0,0.0004,7]
[392116467,1761169853222,-500.0,0.0004,7]
[392116468,1761169853232,-1317.53,0.0004,7]
[392116469,1761169853241,-583.86,0.0004,7]
[392116470,1761169853251,-2573.12,0.0004,7]
[392116471,1761169853260,-500.0,0.0004,7]
[392116472,1761169853270,-491.606358,0.0004,120]
[392116473,1761169853280,-491.606358,0.0004,120]
[392116474,1761169853290,-491.606358,0.0004,120]
[392116475,1761169853299,-424.38633584,0.00040016,5]
[392116476,1761169853309,-502.51300571,0.00040078,15]
[392116477,1761169853319,-1000.0,0.00040161,90]
[392116478,1761169853328,-492.0,0.00040161,90]
[392116479,1761169853339,-500.0,0.00040177,30]
[392116480,1761169853349,-500.0,0.00040178,30]
[392116481,1761169853359,-151.0,0.000402,17]
[392116482,1761169853369,-836.05916736,0.00040273,2]
[392116483,1761169853378,-500.0,0.00040273,7]
[392116484,1761169853390,-500.0,0.00040273,7]
[392116485,1761169853403,-500.0,0.00040273,7]
[392116486,1761169853412,-252.13851538,0.00040273,7]
[392116487,1761169853422,-500.0,0.00040273,7]
[392116488,1761169853433,-500.0,0.00040273,7]
[392116489,1761169853443,-500.0,0.00040273,7]
[392116490,1761169853453,-200.0,0.00040273,7]
[392116491,1761169853463,-500.0,0.00040273,7]
[392116492,1761169853480,-500.0,0.00040273,7]
[392116493,1761169853501,-500.0,0.00040273,7]
[392116494,1761169853518,-500.0,0.00040273,7]
[392116495,1761169853537,-1000.0,0.00040273,2]
[392116496,1761169853556,-500.0,0.00040273,5]
[392116497,1761169853577,-500.0,0.00040273,7]
[392116498,1761169853593,-500.0,0.00040273,7]
[392116499,1761169853609,-1772.39,0.00040273,7]
[392116500,1761169853626,-500.0,0.00040273,7]
[392116501,1761169853641,-2978.72,0.00040273,2]
[392116502,1761169853657,-558.1,0.00040273,7]
[392116503,1761169853675,-682.42,0.00040273,7]
[392116504,1761169853693,-3826.67,0.00040273,7]
[392116505,1761169853711,-500.0,0.00040273,7]
[392116506,1761169853723,-500.0,0.00040273,7]
[392116507,1761169853739,-500.0,0.00040273,7]
[392116508,1761169853756,-500.0,0.00040273,7]
[392116509,1761169853771,-559.76,0.00040273,7]
[392116510,1761169853787,-500.0,0.00040273,7]
[392116511,1761169853801,-582.11,0.00040273,7]
[392116512,1761169853816,-500.0,0.00040273,7]
[392116513,1761169853831,-2458.23,0.00040273,7]
[392116514,1761169853845,-5615.21,0.00040273,7]
[392116515,1761169853860,-500.0,0.00040273,7]
[392116516,1761169853883,-500.0,0.00040273,7]
[392116517,1761169853898,-500.0,0.00040273,7]
[392116518,1761169853912,-500.0,0.00040273,7]
[392116519,1761169853927,-500.0,0.00040273,7]
[392116520,1761169853942,-500.0,0.00040273,7]
[392116521,1761169853956,-500.0,0.00040273,7]
[392116522,1761169853971,-500.0,0.00040273,7]
[392116523,1761169853984,-1615.11,0.00040273,7]
[392116524,1761169853998,-532.38,0.00040273,7]
[392116525,1761169854012,-500.0,0.00040273,7]
[392116526,1761169854027,-500.0,0.00040273,7]
[392116527,1761169854042,-500.0,0.00040273,7]
[392116528,1761169854056,-500.0,0.00040273,7]
[392116529,1761169854071,-500.0,0.00040273,7]
[392116530,1761169854086,-500.0,0.00040273,7]
[392116531,1761169854100,-11953.07,0.00040273,3]
[392116532,1761169854115,-500.0,0.00040273,7]
[392116533,1761169854130,-3313.52,0.00040273,120]
[392116534,1761169854145,-500.0,0.00040273,7]
[392116535,1761169854161,-500.0,0.00040273,7]
[392116536,1761169854175,-551.47,0.00040273,7]
[392116537,1761169854190,-500.0,0.00040273,7]
[392116538,1761169854203,-1336.58,0.00040273,7]
[392116539,1761169854219,-500.0,0.00040273,7]
[392116540,1761169854229,-1853.15,0.00040273,7]
[392116541,1761169854329,-1306.03,0.00040273,7]
[392116542,1761169854349,-500.0,0.00040273,7]
[392116543,1761169854359,-500.0,0.00040273,7]
[392116544,1761169854369,-30464.81,0.00040273,7]
[392116545,1761169854379,-500.0,0.00040273,7]
[392116546,1761169854389,-500.0,0.00040273,7]
[392116547,1761169854403,-692.08,0.00040273,7]
[392116548,1761169854413,-500.0,0.00040273,7]
[392116549,1761169854423,-570.6,0.00040273,7]
[392116550,1761169854434,-500.0,0.00040273,7]
[392116551,1761169854446,-2782.04,0.00040273,7]
[392116552,1761169854456,-500.0,0.00040273,7]
[392116553,1761169854466,-274.40269763,0.00040273,7]
[392116554,1761169854476,-1317.53,0.00040273,7]
[392116555,1761169854486,-583.86,0.00040273,7]
[392116556,1761169854496,-2573.12,0.00040273,7]
[392116557,1761169854505,-500.0,0.00040273,7]
[392116558,1761169854514,-201.0,0.0004028,54]
[392116559,1761169854523,-846.903026,0.00040346,120]
[392116560,1761169854533,-504.1350011,0.0004044,30]
[392116561,1761169854543,-1222.49,0.000405,7]
[392116562,1761169854554,-500.0,0.00040547,7]
[392116563,1761169854563,-500.0,0.00040547,7]
[392116564,1761169854574,-506.69685984,0.00040547,7]
[392116565,1761169854584,-227.92025873,0.00040547,7]
[392116566,1761169854593,-500.0,0.00040547,7]
[392116567,1761169854603,-500.0,0.00040547,7]
[392116568,1761169854612,-200.0,0.00040547,7]
[392116569,1761169854622,-500.0,0.00040547,7]
[392116570,1761169854631,-500.0,0.00040547,7]
[392116571,1761169854640,-500.0,0.00040547,7]
[392116572,1761169854650,-500.0,0.00040547,7]
[392116573,1761169854660,-1000.0,0.00040547,2]
[392116574,1761169854669,-561.97570352,0.00040547,5]
[392116575,1761169854679,-500.0,0.00040547,7]
[392116576,1761169854688,-500.0,0.00040547,7]
[392116577,1761169854698,-1772.39,0.00040547,7]
[392116578,1761169854708,-500.0,0.00040547,7]
[392116579,1761169854717,-2978.72,0.00040547,2]
[392116580,1761169854727,-558.1,0.00040547,7]
[392116581,1761169854737,-682.42,0.00040547,7]
[392116582,1761169854747,-3826.67,0.00040547,7]
[392116583,1761169854757,-500.0,0.00040547,7]
[392116584,1761169854767,-603.6921117,0.00040547,7]
[392116585,1761169854776,-500.0,0.00040547,7]
[392116586,1761169854787,-500.0,0.00040547,7]
[392116587,1761169854797,-559.76,0.00040547,7]
[392116588,1761169854807,-500.0,0.00040547,7]
[392116589,1761169854817,-582.11,0.00040547,7]
[392116590,1761169854826,-500.0,0.00040547,7]
[392116591,1761169854836,-2458.23,0.00040547,7]
[392116592,1761169854846,-5615.21,0.00040547,7]
[392116593,1761169854856,-500.0,0.00040547,7]
[392116594,1761169854865,-500.0,0.00040547,7]
[392116595,1761169854875,-500.0,0.00040547,7]
[392116596,1761169854885,-500.0,0.00040547,7]
[392116597,1761169854895,-500.0,0.00040547,7]
[392116598,1761169854905,-500.0,0.00040547,7]
[392116599,1761169854914,-500.0,0.00040547,7]
[392116600,1761169854924,-500.0,0.00040547,7]
[392116601,1761169854933,-1615.11,0.00040547,7]
[392116602,1761169854943,-532.38,0.00040547,7]
[392116603,1761169854953,-500.0,0.00040547,7]
[392116604,1761169854963,-500.0,0.00040547,7]
[392116605,1761169854972,-500.0,0.00040547,7]
[392116606,1761169854981,-500.0,0.00040547,7]
[392116607,1761169854991,-500.0,0.00040547,7]
[392116608,1761169855000,-500.0,0.00040547,7]
[392116609,1761169855010,-11953.07,0.00040547,3]
[392116610,1761169855020,-607.55434193,0.00040547,7]
[392116611,1761169855030,-459.01686144,0.00040547,7]
[392116612,1761169855040,-500.0,0.00040547,7]
[392116613,1761169855050,-551.47,0.00040547,7]
[392116614,1761169855059,-500.0,0.00040547,7]
[392116615,1761169855069,-1336.58,0.00040547,7]
[392116616,1761169855079,-500.0,0.00040547,7]
[392116617,1761169855089,-1853.15,0.00040547,7]
[392116618,1761169855100,-1306.03,0.00040547,7]
[392116619,1761169855112,-500.0,0.00040547,7]
[392116620,1761169855125,-500.0,0.00040547,7]
[392116621,1761169855135,-30464.81,0.00040547,7]
[392116622,1761169855144,-500.0,0.00040547,7]
[392116623,1761169855154,-500.0,0.00040547,7]
[392116624,1761169855165,-692.08,0.00040547,7]
[392116625,1761169855175,-500.0,0.00040547,7]
[392116626,1761169855185,-570.6,0.00040547,7]
[392116627,1761169855195,-500.0,0.00040547,7]
[392116628,1761169855206,-2782.04,0.00040547,7]
[392116629,1761169855216,-500.0,0.00040547,7]
[392116630,1761169855226,-1317.53,0.00040547,7]
[392116631,1761169855235,-583.86,0.00040547,7]
[392116632,1761169855246,-2573.12,0.00040547,7]
[392116633,1761169855256,-500.0,0.00040547,7]
[392116634,1761169855266,-225.17,0.00040548,30]
[392116635,1761169855277,-212.39836721,0.000406,120]
[392116636,1761169855286,-179.02309921,0.000406,120]
[392116637,1761169855295,-695.67820741,0.000406,120]
[392116638,1761169855306,-195.16799222,0.000406,120]
[392116639,1761169855315,-194.07751545,0.000406,120]
[392116640,1761169855324,-800.0,0.00040622,7]
[392116641,1761169855334,-800.0,0.00040677,7]
[392116642,1761169855344,-324.4905218,0.00040722,2]
[392116643,1761169855353,-584.08293923,0.00040722,2]
[392116644,1761169855363,-1038.36966975,0.00040722,2]
[392116645,1761169855373,-502.56170085,0.0004079,28]
[392116646,1761169855382,-151.0,0.00040821,2]
[392116647,1761169855393,-500.0,0.00040821,7]
[392116648,1761169855405,-500.0,0.00040821,7]
[392116649,1761169855415,-500.0,0.00040821,7]
[392116650,1761169855425,-500.0,0.00040821,7]
[392116651,1761169855436,-200.0,0.00040821,7]
[392116652,1761169855445,-500.0,0.00040821,7]
[392116653,1761169855455,-504.51847406,0.00040821,7]
[392116654,1761169855465,-500.0,0.00040821,7]
[392116655,1761169855475,-500.0,0.00040821,7]
[392116656,1761169855485,-409.68915418,0.00040821,3]
[392116657,1761169855495,-1637.11786008,0.00040821,3]
[392116658,1761169855505,-1000.0,0.00040821,2]
[392116659,1761169855515,-500.0,0.00040821,7]
[392116660,1761169855525,-500.0,0.00040821,7]
[392116661,1761169855534,-1772.39,0.00040821,7]
[392116662,1761169855543,-454.56803323,0.00040821,7]
[392116663,1761169855552,-2978.72,0.00040821,2]
[392116664,1761169855562,-558.1,0.00040821,7]
[392116665,1761169855571,-682.42,0.00040821,7]
[392116666,1761169855580,-3826.67,0.00040821,7]
[392116667,1761169855590,-500.0,0.00040821,7]
[392116668,1761169855600,-856.38592464,0.00040821,3]
[392116669,1761169855610,-527.96813995,0.00040821,7]
[392116670,1761169855619,-500.0,0.00040821,7]
[392116671,1761169855629,-559.76,0.00040821,7]
[392116672,1761169855638,-500.0,0.00040821,7]
[392116673,1761169855647,-582.11,0.00040821,7]
[392116674,1761169855658,-500.0,0.00040821,7]
[392116675,1761169855667,-2458.23,0.00040821,7]
[392116676,1761169855677,-5615.21,0.00040821,7]
[392116677,1761169855686,-500.0,0.00040821,7]
[392116678,1761169855695,-500.0,0.00040821,7]
[392116679,1761169855704,-500.0,0.00040821,7]
[392116680,1761169855714,-500.0,0.00040821,7]
[392116681,1761169855724,-500.0,0.00040821,7]
[392116682,1761169855734,-500.0,0.00040821,7]
[392116683,1761169855744,-500.0,0.00040821,7]
[392116684,1761169855754,-500.0,0.00040821,7]
[392116685,1761169855764,-1615.11,0.00040821,7]
[392116686,1761169855773,-532.38,0.00040821,7]
[392116687,1761169855783,-500.0,0.00040821,7]
[392116688,1761169855792,-586.06168552,0.00040821,7]
[392116689,1761169855802,-500.0,0.00040821,7]
[392116690,1761169855811,-500.0,0.00040821,7]
[392116691,1761169855821,-500.0,0.00040821,7]
[392116692,1761169855831,-500.0,0.00040821,7]
[392116693,1761169855840,-11953.07,0.00040821,3]
[392116694,1761169855850,-151.0,0.00040821,120]
[392116695,1761169855927,-500.0,0.00040821,7]
[392116696,1761169855937,-551.47,0.00040821,7]
[392116697,1761169855947,-500.0,0.00040821,7]
[392116698,1761169855957,-1336.58,0.00040821,7]
[392116699,1761169855967,-500.0,0.00040821,7]
[392116700,1761169855978,-1853.15,0.00040821,7]
[392116701,1761169855988,-1306.03,0.00040821,7]
[392116702,1761169855998,-500.0,0.00040821,7]
[392116703,1761169856008,-500.0,0.00040821,7]
[392116704,1761169856018,-155.08136409,0.00040821,2]
[392116705,1761169856028,-620.32545638,0.00040821,2]
[392116706,1761169856037,-1395.73227685,0.00040821,2]
[392116707,1761169856047,-30464.81,0.00040821,7]
[392116708,1761169856057,-2481.30182551,0.00040821,2]
[392116709,1761169856067,-500.0,0.00040821,7]
[392116710,1761169856075,-500.0,0.00040821,7]
[392116711,1761169856085,-692.08,0.00040821,7]
[392116712,1761169856095,-500.0,0.00040821,7]
[392116713,1761169856104,-570.6,0.00040821,7]
[392116714,1761169856113,-500.0,0.00040821,7]
[392116715,1761169856123,-2782.04,0.00040821,7]
[392116716,1761169856133,-500.0,0.00040821,7]
[392116717,1761169856142,-1317.53,0.00040821,7]
[392116718,1761169856151,-583.86,0.00040821,7]
[392116719,1761169856160,-2573.12,0.00040821,7]
[392116720,1761169856169,-500.0,0.00040821,7]
[392116721,1761169856178,-1857.86404622,0.00040891,2]
[392116722,1761169856187,-151.0,0.00040924,2]
[392116723,1761169856196,-151.0,0.00040924,2]
[392116724,1761169856205,-983.0,0.00040924,2]
[392116725,1761169856215,-632.0,0.00040924,2]
[392116726,1761169856225,-2164.0,0.00040924,2]
[392116727,1761169856236,-160.0,0.00041031,6]
[392116728,1761169856246,-192.4569183,0.00041095,2]
[392116729,1761169856256,-229.4832423,0.00041095,2]
[392116730,1761169856266,-500.0,0.00041095,120]
[392116731,1761169856276,-500.0,0.00041095,120]
[392116732,1761169856288,-500.0,0.00041095,20]
[392116733,1761169856298,-500.0,0.00041095,120]
[392116734,1761169856308,-200.0,0.00041095,120]
[392116735,1761169856317,-500.0,0.00041095,120]
[392116736,1761169856326,-500.0,0.00041095,120]
[392116737,1761169856335,-1000.0,0.00041095,2]
[392116738,1761169856345,-500.0,0.00041095,120]
[392116739,1761169856355,-500.0,0.00041095,120]
[392116740,1761169856364,-1772.39,0.00041095,120]
[392116741,1761169856375,-2978.72,0.00041095,2]
[392116742,1761169856386,-558.1,0.00041095,120]
[392116743,1761169856402,-682.42,0.00041095,120]
[392116744,1761169856412,-3826.67,0.00041095,120]
[392116745,1761169856422,-500.0,0.00041095,120]
[392116746,1761169856434,-257.46278014,0.00041095,120]
[392116747,1761169856446,-559.76,0.00041095,120]
[392116748,1761169856457,-500.0,0.00041095,120]
[392116749,1761169856467,-582.11,0.00041095,120]
[392116750,1761169856479,-500.0,0.00041095,120]
[392116751,1761169856488,-2458.23,0.00041095,120]
[392116752,1761169856497,-5615.21,0.00041095,120]
[392116753,1761169856507,-500.0,0.00041095,120]
[392116754,1761169856516,-500.0,0.00041095,120]
[392116755,1761169856528,-324.7710496,0.00041095,2]
[392116756,1761169856540,-500.0,0.00041095,7]
[392116757,1761169856550,-500.0,0.00041095,120]
[392116758,1761169856559,-216.5,0.00041095,120]
[392116759,1761169856569,-500.0,0.00041095,120]
[392116760,1761169856578,-500.0,0.00041095,120]
[392116761,1761169856588,-500.0,0.00041095,120]
[392116762,1761169856596,-1615.11,0.00041095,120]
[392116763,1761169856606,-532.38,0.00041095,15]
[392116764,1761169856617,-151.0,0.00041095,120]
[392116765,1761169856627,-500.0,0.00041095,120]
[392116766,1761169856639,-500.0,0.00041095,120]
[392116767,1761169856650,-500.0,0.00041095,120]
[392116768,1761169856659,-500.0,0.00041095,120]
[392116769,1761169856669,-500.0,0.00041095,120]
[392116770,1761169856680,-11953.07,0.00041095,3]
[392116771,1761169856691,-3313.52,0.00041095,120]
[392116772,1761169856700,-500.0,0.00041095,120]
[392116773,1761169856710,-551.47,0.00041095,120]
[392116774,1761169856720,-1000.0,0.00041095,120]
[392116775,1761169856732,-500.0,0.00041095,120]
[392116776,1761169856741,-1336.58,0.00041095,120]
[392116777,1761169856750,-500.0,0.00041095,120]
[392116778,1761169856759,-1853.15,0.00041095,120]
[392116779,1761169856769,-1306.03,0.00041095,120]
[392116780,1761169856780,-500.0,0.00041095,120]
[392116781,1761169856791,-312.03067806,0.00041095,120]
[392116782,1761169856801,-30464.81,0.00041095,120]
[392116783,1761169856810,-151.0,0.00041095,120]
[392116784,1761169856821,-488.56342683,0.00041095,120]
[392116785,1761169856830,-500.0,0.00041095,120]
[392116786,1761169856839,-692.08,0.00041095,120]
[392116787,1761169856848,-500.0,0.00041095,120]
[392116788,1761169856858,-570.6,0.00041095,120]
[392116789,1761169856867,-500.0,0.00041095,120]
[392116790,1761169856877,-2782.04,0.00041095,120]
[392116791,1761169856886,-151.0,0.00041095,120]
[392116792,1761169856896,-500.0,0.00041095,7]
[392116793,1761169856906,-1317.53,0.00041095,120]
[392116794,1761169856915,-583.86,0.00041095,30]
[392116795,1761169856925,-2573.12,0.00041095,120]
[392116796,1761169856934,-491.606358,0.00041095,120]
[392116797,1761169856944,-500.0,0.00041095,120]
[392116798,1761169856953,-491.606358,0.00041095,120]
[392116799,1761169856962,-491.606358,0.00041095,120]
[392116800,1761169856972,-4377.82489917,0.00041096,120]
[392116801,1761169856981,-500.0,0.000412,30]
[392116802,1761169856991,-9429.26,0.000413,14]
[392116803,1761169857000,-500.0,0.00041369,120]
[392116804,1761169857009,-500.0,0.00041369,20]
[392116805,1761169857019,-500.0,0.00041369,120]
[392116806,1761169857028,-200.0,0.00041369,120]
[392116807,1761169857038,-500.0,0.00041369,120]
[392116808,1761169857047,-500.0,0.00041369,120]
[392116809,1761169857056,-1000.0,0.00041369,2]
[392116810,1761169857066,-500.0,0.00041369,120]
[392116811,1761169857075,-500.0,0.00041369,120]
[392116812,1761169857085,-1772.39,0.00041369,120]
[392116813,1761169857094,-2978.72,0.00041369,2]
[392116814,1761169857103,-558.1,0.00041369,120]
[392116815,1761169857112,-682.42,0.00041369,120]
[392116816,1761169857122,-3826.67,0.00041369,120]
[392116817,1761169857131,-500.0,0.00041369,120]
[392116818,1761169857141,-559.76,0.00041369,120]
[392116819,1761169857151,-151.0,0.00041369,7]
[392116820,1761169857161,-500.0,0.00041369,120]
[392116821,1761169857170,-582.11,0.00041369,120]
[392116822,1761169857179,-500.0,0.00041369,120]
[392116823,1761169857188,-2458.23,0.00041369,120]
[392116824,1761169857198,-5615.21,0.00041369,120]
[392116825,1761169857207,-313.70621603,0.00041369,120]
[392116826,1761169857216,-500.0,0.00041369,120]
[392116827,1761169857226,-500.0,0.00041369,7]
[392116828,1761169857235,-420.74311374,0.00041369,120]
[392116829,1761169857245,-500.0,0.00041369,120]
[392116830,1761169857255,-586.66349554,0.00041369,120]
[392116831,1761169857264,-1615.11,0.00041369,120]
[392116832,1761169857273,-500.0,0.00041369,120]
[392116833,1761169857282,-532.38,0.00041369,15]
[392116834,1761169857291,-500.0,0.00041369,120]
[392116835,1761169857300,-366.80500749,0.00041369,120]
[392116836,1761169857373,-500.0,0.00041369,120]
[392116837,1761169857383,-500.0,0.00041369,120]
[392116838,1761169857395,-500.0,0.00041369,120]
[392116839,1761169857405,-11953.07,0.00041369,3]
[392116840,1761169857414,-500.0,0.00041369,120]
[392116841,1761169857423,-551.47,0.00041369,120]
[392116842,1761169857432,-1000.0,0.00041369,120]
[392116843,1761169857442,-500.0,0.00041369,120]
[392116844,1761169857452,-1336.58,0.00041369,120]
[392116845,1761169857461,-500.0,0.00041369,120]
[392116846,1761169857473,-1853.15,0.00041369,120]
[392116847,1761169857483,-1306.03,0.00041369,120]
[392116848,1761169857491,-500.0,0.00041369,120]
[392116849,1761169857500,-30464.81,0.00041369,120]
[392116850,1761169857510,-500.0,0.00041369,120]
[392116851,1761169857519,-692.08,0.00041369,120]
[392116852,1761169857528,-500.0,0.00041369,120]
[392116853,1761169857537,-570.6,0.00041369,120]
[392116854,1761169857546,-500.0,0.00041369,120]
[392116855,1761169857556,-2782.04,0.00041369,120]
[392116856,1761169857566,-500.0,0.00041369,7]
[392116857,1761169857575,-1317.53,0.00041369,120]
[392116858,1761169857584,-583.86,0.00041369,30]
[392116859,1761169857594,-2573.12,0.00041369,120]
[392116860,1761169857604,-500.0,0.00041369,120]
[392116861,1761169857614,-500.0,0.000414,30]
[392116862,1761169857624,-800.0,0.00041444,60]
[392116863,1761169857636,-357436.71876407,0.00041444,7]
[392116864,1761169857712,-6004.39632921,0.00041444,7]
[392116865,1761169857904,-491.606358,0.0003863,120]
[392116866,1761169857914,-151.0,0.0003863,120]
[392116867,1761169857924,-491.606358,0.0004,120]
[392116868,1761169857933,-151.0,0.0004,120]
[392116869,1761169857942,-491.606358,0.00041095,120]
[392116870,1761169857952,-463.00021605,0.00041444,7]
[392116871,1761169857963,-2192.34220251,0.00041444,7]
[392116872,1761169857975,-4182.12838816,0.00041444,7]
[392116873,1761169857984,-151.0,0.00041444,2]
[392116874,1761169857994,-151.0,0.00041444,120]
[392116875,1761169858004,-228.384325,0.00041444,120]
[392116876,1761169858013,-209.37164,0.00041444,120]
[392116877,1761169858023,-2691.25,0.000415,14]
[392116878,1761169858033,-500.0,0.00041631,30]
[392116879,1761169858042,-500.0,0.00041643,120]
[392116880,1761169858052,-500.0,0.00041643,20]
[392116881,1761169858061,-500.0,0.00041643,120]
[392116882,1761169858072,-200.0,0.00041643,120]
[392116883,1761169858082,-150.21107778,0.00041643,120]
[392116884,1761169858091,-500.0,0.00041643,120]
[392116885,1761169858101,-1000.0,0.00041643,2]
[392116886,1761169858110,-500.0,0.00041643,120]
[392116887,1761169858120,-500.0,0.00041643,120]
[392116888,1761169858128,-2978.72,0.00041643,2]
[392116889,1761169858137,-558.1,0.00041643,120]
[392116890,1761169858146,-682.42,0.00041643,120]
[392116891,1761169858156,-3826.67,0.00041643,120]
[392116892,1761169858165,-500.0,0.00041643,120]
[392116893,1761169858175,-559.76,0.00041643,120]
[392116894,1761169858184,-151.0,0.00041643,7]
[392116895,1761169858193,-500.0,0.00041643,120]
[392116896,1761169858203,-582.11,0.00041643,120]
[392116897,1761169858211,-500.0,0.00041643,120]
[392116898,1761169858220,-2458.23,0.00041643,120]
[392116899,1761169858229,-5615.21,0.00041643,120]
[392116900,1761169858238,-500.0,0.00041643,120]
[392116901,1761169858247,-500.0,0.00041643,7]
[392116902,1761169858256,-500.0,0.00041643,120]
[392116903,1761169858266,-500.0,0.00041643,120]
[392116904,1761169858276,-532.38,0.00041643,15]
[392116905,1761169858285,-151.0,0.00041643,120]
[392116906,1761169858297,-500.0,0.00041643,120]
[392116907,1761169858308,-174.49454494,0.00041643,120]
[392116908,1761169858318,-500.0,0.00041643,120]
[392116909,1761169858329,-500.0,0.00041643,120]
[392116910,1761169858339,-11953.07,0.00041643,3]
[392116911,1761169858349,-488.48016013,0.00041643,120]
[392116912,1761169858359,-524.93844713,0.00041643,120]
[392116913,1761169858373,-26.53155287,0.00041643,120]
[392116914,1761169858384,-1000.0,0.00041643,120]
[392116915,1761169858398,-500.0,0.00041643,120]
[392116916,1761169858408,-1336.58,0.00041643,120]
[392116917,1761169858419,-500.0,0.00041643,120]
[392116918,1761169858431,-1853.15,0.00041643,120]
[392116919,1761169858442,-1306.03,0.00041643,120]
[392116920,1761169858450,-500.0,0.00041643,120]
[392116921,1761169858460,-30464.81,0.00041643,120]
[392116922,1761169858471,-500.0,0.00041643,120]
[392116923,1761169858481,-692.08,0.00041643,120]
[392116924,1761169858491,-500.0,0.00041643,120]
[392116925,1761169858500,-570.6,0.00041643,120]
[392116926,1761169858510,-500.0,0.00041643,120]
[392116927,1761169858519,-2782.04,0.00041643,120]
[392116928,1761169858528,-500.0,0.00041643,7]
[392116929,1761169858538,-1317.53,0.00041643,120]
[392116930,1761169858547,-583.86,0.00041643,30]
[392116931,1761169858557,-2573.12,0.00041643,120]
[392116932,1761169858568,-491.606358,0.00041643,120]
[392116933,1761169858578,-636.92964701,0.00041643,120]
[392116934,1761169858588,-491.606358,0.00041643,120]
[392116935,1761169858659,-491.606358,0.00041643,120]
[392116936,1761169858668,-491.606358,0.00041643,120]
[392116937,1761169858678,-177.0,0.000417,120]
[392116938,1761169858687,-500.0,0.00041775,30]